{"text_format":"1","workbook":"xlsx","n_sheets":3,"sheets":["Clients","Emplacements","Hangars"],"not_rendered":{"charts":0,"images":0,"macros":1,"external_links":0,"defined_names":5,"comments":0,"pivot_tables":0},"unopened":[],"bounds":{"document_bytes":16777216,"sheet_cells":100000,"rows_first":2000,"rows_last":500,"rows_between":2000,"halvings":0,"cell_chars":16384,"cell_head_chars":4096},"cells_cut":0,"cells_raw":0,"read":"whole","date_system":"1900"}

{"sheet":"Clients","index":0,"n_rows":29,"n_cols":27,"rows_kept":29,"cut":false,"hidden":false,"merged":[]}
["numero de plaque","numero de chassis","nom","societe","telephone","adresse mail","lesaing ou particulier","gratuit ou pas","marque pneu","dimension pneu","roue ou pas","saison","avant ","arriere","pneu present","allee","remarque","remarque","remarque","remarque","remarque","date 1","date 2","date 3","date 4","date 5","date 6"]
["HRB-0534",null,1,null,"087/451245","repris",null,null,"MI","205/55 R16 91H","oui","HIVER",5,6,"oui","3A",null,null,null,null,null,"2016-04-12"]
["1-DHR-0837",null,"AFFORD",null,"012/745214","repris",null,null,null,null,"non","ETE",null,null,"non","12A"]
["FWS-2697",null,"LEONARD",null,"0476/29,23,18","repris",null,null,"GOOD","205/55 R16 91H","oui","ETE",7,"-","oui","17D",null,null,null,null,null,"2016-11-08"]
["FWS-2697",null,"LEONARD",null,"067/21,79,68","repris",null,null,"GY","205/55 R16 91H","non","HIVER",6,"-","oui","17D",null,null,null,null,null,"2017-11-15"]
["HAA-0305",null,"BREYNE",null,"045/25458","repris",null,null,"MI","195/65 R15 91H","oui","ETE",2,5,"non","3C",null,null,null,null,null,"2017-11-28"]
["HAA-0305",null,"BREYNE",null,"0485/31,85,72","repris",null,null,"GOOD","195/65 R15 91T","oui","HIVER",6,8,"oui","3C",null,null,null,null,null,"2018-03-23"]
["494-K-44",null,"CHANTRENNE",null,"047/232541","repris",null,null,"MI","195/65 R15 91H","non","ETE",4,4,"oui","14B",null,null,null,null,null,"2017-12-04"]
["494-k-44",null,"CHANTRENNE",null,"012/457812","repris",null,null,"DU","195/65 R15 91T","non","HIVER",7,8,"non","14B",null,null,null,null,null,"2017-06-29"]
["1-FFA-77",null,"DEKEGEL",null,"011/458745","repris",null,null,"BR","205/55 R16 91V","oui","ETE",4,2,"oui","2C",null,null,null,null,null,"2017-11-06","2017-12-01"]
["1-FFA-77",null,"DEKEGEL",null,"067/33.43.75","repris",null,{"$f":"si","v":{"$error":"#NAME?"}},"DUN","205/55 R16 91T","non","HIVER",4,5,"non","2C",null,null,null,null,null,"2017-04-05","2017-12-02"]
[]
[null,null,null,null,null,null,null,null,null,820]
[null,null,{"$f":"F23","v":"rouge alle 3 c"}]
[]
[]
[]
[]
[]
[]
["rouge"]
[]
["rouge allee 1 c",14574,"rouge allee 1 c",null,{"$f":"MAX(A23:B29,2)","v":124780},{"$f":"VLOOKUP(E23,B23:C29,2)","v":"rouge alle 3 c"}]
["rougeallee 1 b",12458,"rougeallee 1 b",null,124785]
["rouge allee 1 a",1458,"rouge allee 1 a"]
[]
["rouge allee2 a",0,"rouge allee2 a"]
["rouge allee2 b",1254,"rouge allee2 b"]
["rouge alle 3 c",{"$f":"IF(F11=\"repris\",E24-5,E24)","v":124780},"rouge alle 3 c"]

{"sheet":"Emplacements","index":1,"n_rows":23,"n_cols":20,"rows_kept":23,"cut":false,"hidden":false,"merged":[]}
["Nom","plaque client ","dimension pneu","nombre de pneu","emplacement pneu","taille totale necessaire ","Date dépôt","Date reprise","phone","mail","adresse",null,null,null,"nom hangard","emplacement disponible","Occ Tot","Solde","Maxi solde","Place "]
["azerty1","plaque 1","165/80 R14 85 T",0,null,{"$f":"LEFT(C2,3)*LEFT(D2,1)","v":0},null,null,null,null,null,null,null,null,"bleu 1 A",450000,{"$f":"SUMPRODUCT((empla=$O2)*1,taille)","v":0},{"$f":"P2-Q2","v":450000},{"$f":"MAX(R2:R12)","v":460000},{"$f":"INDEX($O$2:$O$12,MATCH($S$2,$R$2:$R$12,0))","v":"bleu 1 B"}]
["azerty2","plaque 2","175/80 R14 85 T",2,"Bleu A 3 D0000",{"$f":"LEFT(C3,3)*LEFT(D3,1)","v":350},"2018-12-05",null,null,null,null,null,null,null,"bleu 1 B",460000,0,{"$f":"P3-Q3","v":460000}]
["azerty3","plaque 3","185/80 R14 85 T",0,null,0,"2018-12-05","2018-12-05",null,null,null,null,null,null,"bleu 1 C",125000,0,125000]
["azerty4","plaque 4","195/80 R14 85 T",0,null,0,null,null,null,null,null,null,null,null,"bleu 1 D",458000,0,458000]
["azerty5","plaque 5","125/80 R14 85 T",0,null,0,null,null,null,null,null,null,null,null,"bleu 2 A",215000,0,215000]
["azerty6","plaque 6","145/80 R14 85 T",0,null,0,null,null,null,null,null,null,null,null,"bleu 2 B",215000,0,215000]
["azerty7","plaque 7","165/80 R14 85 T",0,null,0,null,null,null,null,null,null,null,null,"bleu 2 C",147000,0,147000]
["azerty8","plaque 8","165/80 R14 85 T",0,null,0,null,null,null,null,null,null,null,null,"bleu 2 D",238600,0,238600]
["azerty9","plaque 9","165/80 R14 85 T",0,null,0,null,null,null,null,null,null,null,null,"bleu 3 A",125000,0,125000]
["azerty10","plaque 10","175/80 R14 85 T",0,null,0,null,null,null,null,null,null,null,null,"bleu 3 B",458000,0,458000]
["azerty11","plaque 11","185/80 R14 85 T",0,null,0,null,null,null,null,null,null,null,null,"bleu 3 C",215000,0,215000]
["azerty12","plaque 12","195/80 R14 85 T",0,null,0]
["azerty13","plaque 13","125/80 R14 85 T",0,null,0]
["azerty14","plaque 14","145/80 R14 85 T",0,null,0]
["azerty15","plaque 15","165/80 R14 85 T",0,null,0]
["azerty16","plaque 16","165/80 R14 85 T",0,null,0]
["azerty17","plaque 17","165/80 R14 85 T",0,null,0]
["azerty18","plaque 18","175/80 R14 85 T",0,null,0]
["azerty19","plaque 19","185/80 R14 85 T",0,null,0]
[]
[]
[null,{"$f":"COUNTA(B20:C20)","v":2}]

{"sheet":"Hangars","index":2,"n_rows":24,"n_cols":206,"rows_kept":24,"cut":false,"hidden":false,"merged":[]}
["Hangar","Allée","Etagère","Longueur (cm)",null,0,5,10,15,20,25,30,35,40,45,50,55,60,65,70,75,80,85,90,95,100,105,110,115,120,125,130,135,140,145,150,155,160,165,170,175,180,185,190,195,200,205,210,215,220,225,230,235,240,245,250,255,260,265,270,275,280,285,290,295,300,305,310,315,320,325,330,335,340,345,350,355,360,365,370,375,380,385,390,395,400,405,410,415,420,425,430,435,440,445,450,455,460,465,470,475,480,485,490,495,500,505,510,515,520,525,530,535,540,545,550,555,560,565,570,575,580,585,590,595,600,605,610,615,620,625,630,635,640,645,650,655,660,665,670,675,680,685,690,695,700,705,710,715,720,725,730,735,740,745,750,755,760,765,770,775,780,785,790,795,800,805,810,815,820,825,830,835,840,845,850,855,860,865,870,875,880,885,890,895,900,905,910,915,920,925,930,935,940,945,950,955,960,965,970,975,980,985,990,995]
["Bleu","A",1,1000,null,1,1,1,1,1,1,1,1,1,1,1,1,1,1,1,1,1,1,1,1,1,1,1,1,1,1,1,1,1,1,1,1,1,1,1,1,1,1,1,1,1,1,1,1,1,1,1,1,1,1,1,1,1,1,1,1,1,1,1,1,1,1,1,1,1,1,1,1,1,1,1,1,1,1,1,1,1,1,1,1,1,1,1,1,1,1,1,1,1,1,1,1,1,1,1,1,1,1,1,1,1,1,1,1,1,1,1,1,1,1,1,1,1,1,1,1,1,1,1,1,1,1,1,1,1,1,1,1,1,1,1,1,1,1,1,1,1,1,1,1,1,1,1,1,1,1,1,1,1,1,1,1,1,1,1,1,1,1,1,1,1,1,1,1,1,1,1,1,1,null,null,null,null,1,1,1,1,1,1,null,null,null,null,null,null,1,1,1,1,1,1,1,1,1,1,1,1,1,1,1,"Fin"]
["Bleu","A",2,1000,null,1,2,3,6,7,8,9,13,14,15,16,17,18,19,20,21,22,23,24,25,26,1,1,1,1,1,1,1,1,1,1,1,1,1,1,1,1,1,1,1,1,1,1,1,1,1,1,1,1,1,1,1,1,1,1,1,1,1,1,1,1,1,1,1,1,1,1,1,1,1,1,1,1,1,1,1,1,1,1,1,1,1,1,1,1,1,1,1,1,1,1,1,1,1,1,1,1,1,1,1,1,1,1,1,1,1,1,1,1,1,1,1,1,1,1,1,1,1,1,1,1,1,1,1,1,1,1,1,1,1,1,1,1,1,1,1,1,1,1,1,1,1,1,1,1,1,1,1,1,1,1,1,1,1,1,1,1,1,1,1,1,1,1,1,1,1,1,1,1,1,1,1,1,1,1,1,1,1,1,1,1,1,1,1,1,1,1,1,1,1,1,1,1,1,"x",null,null,null,null,null,"Fin"]
["Bleu","A",3,1000,null,"plaque 2","plaque 2","plaque 2","plaque 2","plaque 2","plaque 2","plaque 2",null,null,null,null,null,null,null,null,null,null,null,null,null,null,null,null,null,null,null,null,null,null,null,null,null,null,null,null,null,null,null,null,null,null,null,null,null,null,null,null,null,null,null,null,null,null,null,null,null,null,null,null,null,null,null,null,null,null,null,null,null,null,null,null,null,null,null,null,null,null,null,null,null,null,null,null,null,null,null,null,null,null,null,null,null,null,null,null,null,null,null,null,null,null,null,null,null,null,null,null,null,null,null,null,null,null,null,null,null,null,null,null,null,null,null,null,null,null,null,null,null,null,null,null,null,null,null,null,null,null,null,null,null,null,null,null,null,null,null,null,null,null,null,null,null,null,null,null,null,null,null,null,null,null,null,null,null,null,null,null,null,null,null,null,null,null,null,null,null,null,null,null,null,null,null,null,null,null,null,null,null,null,null,null,null,null,null,null,null,null,null,null,null,"Fin"]
["Bleu","A",4,1000,null,null,null,null,null,null,null,null,null,null,null,null,null,null,null,null,null,null,null,null,null,null,null,null,null,null,null,null,null,null,null,null,null,null,null,null,null,null,null,null,null,null,null,null,null,null,null,null,null,null,null,null,null,null,null,null,null,null,null,null,null,null,null,null,null,null,null,null,null,null,null,null,null,null,null,null,null,null,null,null,null,null,null,null,null,null,null,null,null,null,null,null,null,null,null,null,null,null,null,null,null,null,null,null,null,null,null,null,null,null,null,null,null,null,null,null,null,null,null,null,null,null,null,null,null,null,null,null,null,null,null,null,null,null,null,null,null,null,null,null,null,null,null,null,null,null,null,null,null,null,null,null,null,null,null,null,null,null,null,null,null,null,null,null,null,null,null,null,null,null,null,null,null,null,null,null,null,null,null,null,null,null,null,null,null,null,null,null,null,null,null,null,null,null,null,null,null,null,null,null,null,"Fin"]
["Bleu","B",1,1000,null,null,null,null,null,null,null,null,null,null,null,null,null,null,null,null,null,null,null,null,null,null,null,null,null,null,null,null,null,null,null,null,null,null,null,null,null,null,null,null,null,null,null,null,null,null,null,null,null,null,null,null,null,null,null,null,null,null,null,null,null,null,null,null,null,null,null,null,null,null,null,null,null,null,null,null,null,null,null,null,null,null,null,null,null,null,null,null,null,null,null,null,null,null,null,null,null,null,null,null,null,null,null,null,null,null,null,null,null,null,null,null,null,null,null,null,null,null,null,null,null,null,null,null,null,null,null,null,null,null,null,null,null,null,null,null,null,null,null,null,null,null,null,null,null,null,null,null,null,null,null,null,null,null,null,null,null,null,null,null,null,null,null,null,null,null,null,null,null,null,null,null,null,null,null,null,null,null,null,null,null,null,null,null,null,null,null,null,null,null,null,null,null,null,null,null,null,null,null,null,null,"Fin"]
["Bleu","B",2,1000,null,null,null,null,null,null,null,null,null,null,null,null,null,null,null,null,null,null,null,null,null,null,null,null,null,null,null,null,null,null,null,null,null,null,null,null,null,null,null,null,null,null,null,null,null,null,null,null,null,null,null,null,null,null,null,null,null,null,null,null,null,null,null,null,null,null,null,null,null,null,null,null,null,null,null,null,null,null,null,null,null,null,null,null,null,null,null,null,null,null,null,null,null,null,null,null,null,null,null,null,null,null,null,null,null,null,null,null,null,null,null,null,null,null,null,null,null,null,null,null,null,null,null,null,null,null,null,null,null,null,null,null,null,null,null,null,null,null,null,null,null,null,null,null,null,null,null,null,null,null,null,null,null,null,null,null,null,null,null,null,null,null,null,null,null,null,null,null,null,null,null,null,null,null,null,null,null,null,null,null,null,null,null,null,null,null,null,null,null,null,null,null,null,null,null,null,null,null,null,null,null,"Fin"]
["Bleu","B",3,1000,null,null,null,null,null,null,null,null,null,null,null,null,null,null,null,null,null,null,null,null,null,null,null,null,null,null,null,null,null,null,null,null,null,null,null,null,null,null,null,null,null,null,null,null,null,null,null,null,null,null,null,null,null,null,null,null,null,null,null,null,null,null,null,null,null,null,null,null,null,null,null,null,null,null,null,null,null,null,null,null,null,null,null,null,null,null,null,null,null,null,null,null,null,null,null,null,null,null,null,null,null,null,null,null,null,null,null,null,null,null,null,null,null,null,null,null,null,null,null,null,null,null,null,null,null,null,null,null,null,null,null,null,null,null,null,null,null,null,null,null,null,null,null,null,null,null,null,null,null,null,null,null,null,null,null,null,null,null,null,null,null,null,null,null,null,null,null,null,null,null,null,null,null,null,null,null,null,null,null,null,null,null,null,null,null,null,null,null,null,null,null,null,null,null,null,null,null,null,null,null,null,"Fin"]
["Bleu","B",4,1000,null,null,null,null,null,null,null,null,null,null,null,null,null,null,null,null,null,null,null,null,null,null,null,null,null,null,null,null,null,null,null,null,null,null,null,null,null,null,null,null,null,null,null,null,null,null,null,null,null,null,null,null,null,null,null,null,null,null,null,null,null,null,null,null,null,null,null,null,null,null,null,null,null,null,null,null,null,null,null,null,null,null,null,null,null,null,null,null,null,null,null,null,null,null,null,null,null,null,null,null,null,null,null,null,null,null,null,null,null,null,null,null,null,null,null,null,null,null,null,null,null,null,null,null,null,null,null,null,null,null,null,null,null,null,null,null,null,null,null,null,null,null,null,null,null,null,null,null,null,null,null,null,null,null,null,null,null,null,null,null,null,null,null,null,null,null,null,null,null,null,null,null,null,null,null,null,null,null,null,null,null,null,null,null,null,null,null,null,null,null,null,null,null,null,null,null,null,null,null,null,null,"Fin"]
["Bleu","C",1,1000,null,null,null,null,null,null,null,null,null,null,null,null,null,null,null,null,null,null,null,null,null,null,null,null,null,null,null,null,null,null,null,null,null,null,null,null,null,null,null,null,null,null,null,null,null,null,null,null,null,null,null,null,null,null,null,null,null,null,null,null,null,null,null,null,null,null,null,null,null,null,null,null,null,null,null,null,null,null,null,null,null,null,null,null,null,null,null,null,null,null,null,null,null,null,null,null,null,null,null,null,null,null,null,null,null,null,null,null,null,null,null,null,null,null,null,null,null,null,null,null,null,null,null,null,null,null,null,null,null,null,null,null,null,null,null,null,null,null,null,null,null,null,null,null,null,null,null,null,null,null,null,null,null,null,null,null,null,null,null,null,null,null,null,null,null,null,null,null,null,null,null,null,null,null,null,null,null,null,null,null,null,null,null,null,null,null,null,null,null,null,null,null,null,null,null,null,null,null,null,null,null,"Fin"]
["Bleu","C",2,1000,null,null,null,null,null,null,null,null,null,null,null,null,null,null,null,null,null,null,null,null,null,null,null,null,null,null,null,null,null,null,null,null,null,null,null,null,null,null,null,null,null,null,null,null,null,null,null,null,null,null,null,null,null,null,null,null,null,null,null,null,null,null,null,null,null,null,null,null,null,null,null,null,null,null,null,null,null,null,null,null,null,null,null,null,null,null,null,null,null,null,null,null,null,null,null,null,null,null,null,null,null,null,null,null,null,null,null,null,null,null,null,null,null,null,null,null,null,null,null,null,null,null,null,null,null,null,null,null,null,null,null,null,null,null,null,null,null,null,null,null,null,null,null,null,null,null,null,null,null,null,null,null,null,null,null,null,null,null,null,null,null,null,null,null,null,null,null,null,null,null,null,null,null,null,null,null,null,null,null,null,null,null,null,null,null,null,null,null,null,null,null,null,null,null,null,null,null,null,null,null,null,"Fin"]
["Bleu","C",3,1000,null,null,null,null,null,null,null,null,null,null,null,null,null,null,null,null,null,null,null,null,null,null,null,null,null,null,null,null,null,null,null,null,null,null,null,null,null,null,null,null,null,null,null,null,null,null,null,null,null,null,null,null,null,null,null,null,null,null,null,null,null,null,null,null,null,null,null,null,null,null,null,null,null,null,null,null,null,null,null,null,null,null,null,null,null,null,null,null,null,null,null,null,null,null,null,null,null,null,null,null,null,null,null,null,null,null,null,null,null,null,null,null,null,null,null,null,null,null,null,null,null,null,null,null,null,null,null,null,null,null,null,null,null,null,null,null,null,null,null,null,null,null,null,null,null,null,null,null,null,null,null,null,null,null,null,null,null,null,null,null,null,null,null,null,null,null,null,null,null,null,null,null,null,null,null,null,null,null,null,null,null,null,null,null,null,null,null,null,null,null,null,null,null,null,null,null,null,null,null,null,null,"Fin"]
["Bleu","C",4,1000,null,null,null,null,null,null,null,null,null,null,null,null,null,null,null,null,null,null,null,null,null,null,null,null,null,null,null,null,null,null,null,null,null,null,null,null,null,null,null,null,null,null,null,null,null,null,null,null,null,null,null,null,null,null,null,null,null,null,null,null,null,null,null,null,null,null,null,null,null,null,null,null,null,null,null,null,null,null,null,null,null,null,null,null,null,null,null,null,null,null,null,null,null,null,null,null,null,null,null,null,null,null,null,null,null,null,null,null,null,null,null,null,null,null,null,null,null,null,null,null,null,null,null,null,null,null,null,null,null,null,null,null,null,null,null,null,null,null,null,null,null,null,null,null,null,null,null,null,null,null,null,null,null,null,null,null,null,null,null,null,null,null,null,null,null,null,null,null,null,null,null,null,null,null,null,null,null,null,null,null,null,null,null,null,null,null,null,null,null,null,null,null,null,null,null,null,null,null,null,null,null,"Fin"]
["Bleu","D",1,1000,null,null,null,null,null,null,null,null,null,null,null,null,null,null,null,null,null,null,null,null,null,null,null,null,null,null,null,null,null,null,null,null,null,null,null,null,null,null,null,null,null,null,null,null,null,null,null,null,null,null,null,null,null,null,null,null,null,null,null,null,null,null,null,null,null,null,null,null,null,null,null,null,null,null,null,null,null,null,null,null,null,null,null,null,null,null,null,null,null,null,null,null,null,null,null,null,null,null,null,null,null,null,null,null,null,null,null,null,null,null,null,null,null,null,null,null,null,null,null,null,null,null,null,null,null,null,null,null,null,null,null,null,null,null,null,null,null,null,null,null,null,null,null,null,null,null,null,null,null,null,null,null,null,null,null,null,null,null,null,null,null,null,null,null,null,null,null,null,null,null,null,null,null,null,null,null,null,null,null,null,null,null,null,null,null,null,null,null,null,null,null,null,null,null,null,null,null,null,null,null,null,"Fin"]
["Bleu","D",2,1000,null,null,null,null,null,null,null,null,null,null,null,null,null,null,null,null,null,null,null,null,null,null,null,null,null,null,null,null,null,null,null,null,null,null,null,null,null,null,null,null,null,null,null,null,null,null,null,null,null,null,null,null,null,null,null,null,null,null,null,null,null,null,null,null,null,null,null,null,null,null,null,null,null,null,null,null,null,null,null,null,null,null,null,null,null,null,null,null,null,null,null,null,null,null,null,null,null,null,null,null,null,null,null,null,null,null,null,null,null,null,null,null,null,null,null,null,null,null,null,null,null,null,null,null,null,null,null,null,null,null,null,null,null,null,null,null,null,null,null,null,null,null,null,null,null,null,null,null,null,null,null,null,null,null,null,null,null,null,null,null,null,null,null,null,null,null,null,null,null,null,null,null,null,null,null,null,null,null,null,null,null,null,null,null,null,null,null,null,null,null,null,null,null,null,null,null,null,null,null,null,null,"Fin"]
["Bleu","D",3,1000,null,null,null,null,null,null,null,null,null,null,null,null,null,null,null,null,null,null,null,null,null,null,null,null,null,null,null,null,null,null,null,null,null,null,null,null,null,null,null,null,null,null,null,null,null,null,null,null,null,null,null,null,null,null,null,null,null,null,null,null,null,null,null,null,null,null,null,null,null,null,null,null,null,null,null,null,null,null,null,null,null,null,null,null,null,null,null,null,null,null,null,null,null,null,null,null,null,null,null,null,null,null,null,null,null,null,null,null,null,null,null,null,null,null,null,null,null,null,null,null,null,null,null,null,null,null,null,null,null,null,null,null,null,null,null,null,null,null,null,null,null,null,null,null,null,null,null,null,null,null,null,null,null,null,null,null,null,null,null,null,null,null,null,null,null,null,null,null,null,null,null,null,null,null,null,null,null,null,null,null,null,null,null,null,null,null,null,null,null,null,null,null,null,null,null,null,null,null,null,null,null,"Fin"]
["Bleu","D",4,1000,null,null,null,null,null,null,null,null,null,null,null,null,null,null,null,null,null,null,null,null,null,null,null,null,null,null,null,null,null,null,null,null,null,null,null,null,null,null,null,null,null,null,null,null,null,null,null,null,null,null,null,null,null,null,null,null,null,null,null,null,null,null,null,null,null,null,null,null,null,null,null,null,null,null,null,null,null,null,null,null,null,null,null,null,null,null,null,null,null,null,null,null,null,null,null,null,null,null,null,null,null,null,null,null,null,null,null,null,null,null,null,null,null,null,null,null,null,null,null,null,null,null,null,null,null,null,null,null,null,null,null,null,null,null,null,null,null,null,null,null,null,null,null,null,null,null,null,null,null,null,null,null,null,null,null,null,null,null,null,null,null,null,null,null,null,null,null,null,null,null,null,null,null,null,null,null,null,null,null,null,null,null,null,null,null,null,null,null,null,null,null,null,null,null,null,null,null,null,null,null,null,"Fin"]
[]
[]
[]
[]
[]
[]
[null,null,null,null,null,null,null,null,"https://www.commentcamarche.net/forum/affich-35710254-soucis-avec-une-gestion-automatique-d-un-stock#p35722016"]